Cogmind - Beta 11.1 @@@ ROGUE MODE // 2022.08.29 @ 17:24:47 Player: darlorth Result: Destroyed by G-47 Trooper with Particle Gun Performance ------------- Evolutions (0) 0 Regions Visited (1) 200 Robots Destroyed (11) 55 Value Destroyed (354) 354 Prototype IDs (0) 0 Alien Tech Used (0) 0 Bonus (0) 0 TOTAL SCORE: 609 Bonus ------- None Cogmind --------- Core Integrity 0/250 Matter 287/300 Energy 250/250 System Corruption 0% Temperature Cool (59) Movement Treading (320) Ox2 Location -10/Materials Parts ------- > --- POWER (1) -------- Ion Engine > --- PROPULSION (2) --- Light Treads Light Treads > --- UTILITY (2) ------ Huge Storage Unit Signal Interpreter > --- WEAPON (2) ------- Assault Rifle > --- INVENTORY (25) --- Ion Engine Hover Unit Medium Laser Medium Laser Particle Gun Peak State ------------ > --- POWER ------------ Ion Engine > --- PROPULSION ------- Light Treads Light Treads > --- UTILITY ---------- Huge Storage Unit Signal Interpreter > --- WEAPON ----------- Assault Rifle Light Assault Rifle > --- INVENTORY -------- Ion Engine Hover Unit Medium Laser Medium Laser Particle Gun [Rating: 7] Favorites ----------- Power Ion Engine Engine Ion Engine Propulsion Light Treads Treads Light Treads Utility Signal Interpreter Storage Huge Storage Unit Processor Signal Interpreter Weapon Light Assault Rifle Ballistic Gun Light Assault Rifle Build | -11 -10 ------- Run | Scr Mat Slots Evolved . | . . Power . | . . Propulsion . | . . Utility . | . . Weapon . | . . Parts Attached 9 | 5 4 Power 2 | 1 1 Engine 2 | 1 1 Core . | . . Reactor . | . . Propulsion 3 | 2 1 Treads 3 | 2 1 Leg . | . . Wheel . | . . Hover . | . . Flight . | . . Utility 2 | . 2 Device . | . . Storage 1 | . 1 Processor 1 | . 1 Hackware . | . . Protection . | . . Artifact . | . . Weapon 2 | 2 . Energy Gun . | . . Energy Cannon . | . . Ballistic Gun 2 | 2 . Ballistic Cannon . | . . Launcher . | . . Special Weapon . | . . Impact Weapon . | . . Slashing Weapon . | . . Piercing Weapon . | . . Special Melee Weapon . | . . Unidentified Prototypes . | . . Parts Lost 2 | . 2 Power . | . . Propulsion 1 | . 1 Utility . | . . Weapon 1 | . 1 Highest Loss Streak 1 | . 1 To Critical Strikes . | . . Average Slot Usage (%) 82 | . 82 Engine 14 | . 14 Treads 27 | . 27 Storage 1 | . 1 Processor 10 | . 10 Ballistic Gun 28 | . 28 Naked Turns . | . . Heaviest Build 88 | 8 88 Greatest Support 40 | 40 40 Greatest Overweight (x) 2 | . 2 Average Overweight (x) . | . . Largest Inventory Capacity 25 | 5 25 Average Capacity 6 | 5 7 Most Carried 5 | 5 5 Average Carried 1 | . 2 Final Capacity 25 | 5 25 Final Carried 5 | . 5 Class Distribution -------------------- 100% | Mutant Dominant Class ---------------- Mutant | -10/Materials Resources | -11 -10 ----------- Run | Scr Mat Matter Collected 407 | 223 184 Remotely . | . . Salvage Created 404 | . 404 Parts 28 | . 28 Haulers Intercepted 1 | . 1 Recyclers Shooed . | . . Parts Field Recycled . | . . Retrieved Matter . | . . Parts Self-Destructed . | . . Prevented . | . . Kills | -11 -10 ------- Run | Scr Mat Combat Hostiles Destroyed 8 | . 8 Guns 6 | . 6 AOE 2 | . 2 Classes Destroyed 4 | . 4 Worker 1 | . 1 Hauler 1 | . 1 Watcher 1 | . 1 Grunt 8 | . 8 Best Kill Streak 4 | . 4 Combat Bots Only 3 | . 3 Max Kills in Single Turn 3 | . 3 Gunslinging . | . . Exploded 2 | . 2 Melee . | . . Uniques/NPCs Destroyed . | . . Combat | -11 -10 -------- Run | Scr Mat Damage Taken 735 | . 735 Core 262 | . 262 Absorbed by Shields . | . . Core Remaining (%) 100 | 100 . Volleys Fired 36 | . 36 Largest 2 | . 2 Hottest 40 | . 40 Shots Fired 72 | . 72 Gun 72 | . 72 Cannon . | . . Launcher . | . . Special . | . . Kinetic 72 | . 72 Thermal . | . . Explosive . | . . Electromagnetic . | . . Robot Hit Streak 19 | . 19 Robot Miss Streak 2 | . 2 Penetration Max . | . . Secondary Targets 1 | . 1 Max Gunslinging Chain 1 | . 1 Shots Hit Robots 47 | . 47 Core Hits 20 | . 20 Critical Kills 2 | . 2 Critical Parts Destroyed . | . . Critical Strikes 2 | . 2 Destroy 2 | . 2 Melee Attacks . | . . Impact . | . . Slashing . | . . Piercing . | . . Sneak Attacks . | . . Combat Hostiles . | . . Follow-up Attacks . | . . Damage Inflicted 685 | . 685 Guns 481 | . 481 Cannons . | . . Explosions 203 | . 203 Melee . | . . Ramming 1 | . 1 Kinetic 481 | . 481 Thermal 203 | . 203 Explosive . | . . Electromagnetic . | . . Impact . | . . Slashing . | . . Piercing . | . . Highest Corruption . | . . Average Corruption . | . . Corruption Purged . | . . Corruption Blocked . | . . Overload Shots . | . . Overflow Damage 3 | . 3 Projectiles . | . . Explosions 3 | . 3 Melee . | . . Knockbacks . | . . Impact . | . . Kinetic . | . . Secondary . | . . Self-Inflicted Damage 239 | . 239 Shots 3 | . 3 Rammed 1 | . 1 Targets Rammed 1 | . 1 Kicked . | . . Crushed . | . . Highest Temperature 25 | . 25 Average Temperature 9 | . 9 Received Heat Transfer 291 | . 291 Siege Activations . | . . Robots Corrupted . | . . Combat Hostiles . | . . Parts Fried . | . . Impact Corruptions . | . . Robots Melted . | . . Combat Hostiles . | . . Parts Melted . | . . Heat Transferred 200 | . 200 Parts Sabotaged . | . . Parts Stolen . | . . Parts Stripped . | . . Power Chain Reactions . | . . Missiles Intercepted . | . . Alert | -11 -10 ------- Run | Scr Mat Peak Influence 291 | . 291 Initial . | . . Average 114 | . 128 Maximum Alert Level 1 | . 1 Low Security (%) 70 | 100 67 Level 1 29 | . 32 Level 2 . | . . Level 3 . | . . Level 4 . | . . Level 5 . | . . High Security . | . . Max Security . | . . Squads Dispatched 3 | . 3 Investigation 1 | . 1 Extermination . | . . Reinforcement 2 | . 2 Assault . | . . Garrison . | . . Intercept . | . . Searches Triggered . | . . Construction Impeded . | . . Haulers Reinforced . | . . Active Scanning Responses . | . . Cargo Convoy Interrupts . | . . Stealth | -11 -10 --------- Run | Scr Mat Distress Signals . | . . Communications Jammed . | . . Distress Signals . | . . Times Spotted 20 | . 20 Peak Tracking Total 5 | . 5 Tactical Retreats . | . . Traps | -11 -10 ------- Run | Scr Mat Traps Triggered 1 | . 1 Indirectly . | . . Trap Hack Attempts . | . . Triggered . | . . Disarmed . | . . Reprogrammed . | . . Reused . | . . Traps Extracted . | . . Installed . | . . Triggered . | . . Machines | -11 -10 ---------- Run | Scr Mat Machines Disabled 5 | . 5 Max in Single Turn 3 | . 3 Machines Sabotaged . | . . Garrisons Compromised . | . . Overloaded Fab Kills . | . . Hacking | -11 -10 --------- Run | Scr Mat Machines Accessed . | . . Terminals . | . . Fabricators . | . . Repair Stations . | . . Recycling Units . | . . Scanalyzers . | . . Garrison Access . | . . Total Hacks . | . . Successful . | . . Failed . | . . Catastrophic . | . . Database Lockouts . | . . Manual . | . . Terminals . | . . Fabricators . | . . Repair Stations . | . . Recycling Units . | . . Scanalyzers . | . . Garrison Access . | . . Terminal Hacks . | . . Fabricator Hacks . | . . Repair Station Hacks . | . . Recycling Unit Hacks . | . . Scanalyzer . | . . Garrison Access Hacks . | . . Unauthorized Hacks . | . . Terminals . | . . Fabricators . | . . Repair Stations . | . . Recycling Units . | . . Scanalyzers . | . . Garrison Access . | . . Data Cores Recovered . | . . Used . | . . Hacking Detections . | . . Full Trace Events . | . . Feedback Events . | . . Feedback Blocked . | . . Robot Schematics Acquired . | . . Robots Built . | . . Authchips . | . . Time . | . . Total Robot Build Rating . | . . Part Schematics Acquired . | . . Parts Built . | . . Authchips . | . . Time . | . . Total Part Build Rating . | . . Parts Repaired . | . . Time . | . . Parts Recycled . | . . Recycled Matter . | . . Retrieved Matter . | . . Retrieved Components . | . . Parts Scanalyzed . | . . Part Schematics Acquired . | . . Parts Damaged . | . . Bothacking | -11 -10 ------------ Run | Scr Mat Used RIF Installer . | . . Robots Hacked . | . . Non-combat . | . . Combat . | . . Robot Hacks Applied . | . . Relay Couplers Released . | . . Fabnet Peak Effective % . | . . Robots Rewired . | . . Allies Hacked . | . . Hacks Repelled . | . . Allies | -11 -10 -------- Run | Scr Mat Total Allies . | . . Largest Group . | . . Highest-Rated Group . | . . Highest-Rated Ally . | . . Total Orders . | . . Ally Attacks . | . . Total Damage . | . . Kills . | . . Allies Corrupted . | . . Allies Melted . | . . Intel | -11 -10 ------- Run | Scr Mat Robot Analysis Total . | . . Derelict Logs Recovered . | . . Drone Launches . | . . Drone Recoveries . | . . Exploration | -11 -10 ------------- Run | Scr Mat Turns Passed 643 | 70 573 Spaces Moved 305 | 41 264 Core 16 | 16 . Treads 289 | 25 264 Legs . | . . Wheels . | . . Hover . | . . Flight . | . . Fastest Speed 50 | 50 160 Average Speed 162 | 117 169 Slowest Speed 320 | 160 320 Overloaded Moves . | . . Propulsion Burnouts . | . . Robots Hopped . | . . Cave-ins Triggered . | . . Exploration Rate (%) 31 | 4 59 Regions Visited 1 Branch Regions . Pre-discovered Areas . | . . Known Exits Taken . | . . Unknown Exits Taken 1 | 1 . Scrap Searched . | . . Spaces Dug . | . . Terrain Destroyed 53 | . 53 Melee . | . . Projectile . | . . AOE 53 | . 53 Terrain Rammed . | . . Walls Destroyed . | . . Machines Disabled . | . . Actions | -11 -10 --------- Run | Scr Mat Total 387 | 63 324 Wait 21 | 13 8 Move 304 | 40 264 Hop . | . . Pick Up 14 | 5 9 Fast Attach 1 | . 1 Attach 7 | 5 2 Detach . | . . Swap 1 | . 1 Drop 2 | . 2 Fire 36 | . 36 Melee . | . . Ram . | . . Kick . | . . Crush 1 | . 1 Escape Stasis . | . . Rewire . | . . Trap . | . . Miscellaneous . | . . Route ------- -11/Scrapyard -10/Materials (discovered 3 exits: *Mat / [*Min x2]) History --------- Turn | Location | Event 11 | -11/Scrapyard | Discovered new exit (range 15) 71 | -11/Scrapyard | Entered Materials 210 | -10/Materials | Discovered new exit (range 7) 312 | -10/Materials | Build established: Mutant 334 | -10/Materials | Discovered new exit (range 11) 441 | -10/Materials | Identified exit to Materials 490 | -10/Materials | Core integrity fell below 50% 513 | -10/Materials | Discovered new exit (range 13) 635 | -10/Materials | Core integrity fell below 20% 644 | -10/Materials | Destroyed by G-47 Trooper with Particle Gun Last Messages --------------- 00533_ K-01 Serf collects debris. 00534_ U-05 Engineer lays Concrete. 00536_ K-01 Serf collects debris. 00538_ U-05 Engineer builds a Wall. 00539_ U-05 Engineer lays Concrete. 00539_ K-01 Serf collects debris. 00540_ U-05 Engineer builds a Wall. 00543_ K-01 Serf collects debris. 00548_ U-05 Engineer lays Concrete. 00550_ U-05 Engineer builds a Wall. 00550_ K-01 Serf collects debris. 00565_ Acquired 4 matter. 00573_ Dropped Sml. Laser. 00579_ Acquired Med. Laser. 00584_ Acquired Huge Storage Unit. 00625_ K-01 Serf cleans the Processing Tank. 00633_ Slammed into G-47 Trooper. 00638_ K-01 Serf cleans the Processing Tank. 00644_ Lgt. Assault Rifle destroyed. 00644_ Critical hit (Burn: +37). Map ----- +----------------------------------------------------+ | !!! # #" T" ###### #? | | !!! + #" = "" #? | | # # *%[ #? | | # # !% #? | | ########## ## = #? | | ??####### #? | | # # "#####+########## #? | | + # ## #??????? #? | | # ##"" #?????????? | | ####### " ##"T !%[ #?????????? | | ????????######"""""""" ##"" [ #?????????? | | ?????????????#### # #### ! #?????????? | | ????????????????######??# #?????????? | | ????????????????????????# [[ #?????????? | | ????????????????????????# #?????????? | | ????????????????????????###+#######?????????? | | ????????????????????????# #######+## ???? | | ????????????????????????# ??? | | ????????????????????????# ??? | | ????????????????????????# ??? | | ????????????????????????# ########## ??? | | ???????????????########### ##?????????????? | | ?????????????? # #??????????????? | | ??????????????????"" """ + #??????????????? | | ??????????????????"" """g#w #??????????????? | | ??????????????????"" """g@ #??????????????? | | ??????????????????"" """ # #??????????????? | | ??????????????????"" """ # #??????????????? | | ?????????????????? k?# #??????????????? | | ??????????????????######?# +?????????????? | | ?????????????????????????# g##?????????????? | | ?????????????????????????### #??????????????? | | ???????????????????????????? #??????????????? | | ???????????????????????????? #??????????????? | | ???????????????????????????? #??????????????? | | ???????????????????????????? #??????????????? | | ?????????????????????????????/??????????????? | | ?????????????????????????????#??????????????? | | ????????????????????????????????????????????? | | ????????????????????????????????????????????? | | ????????????????????????????????????????????? | | ????????????????????????????????????????????? | | ????????????????????????????????????????????? | | ????????????????????????????????????????????? | | ????????????????????????????????????????????? | | ????????????????????????????????????????????? | | ????????????????????????????????????????????? | | ????????????????????????????????????????????? | | ????????????????????????????????????????????? | | ????????????????????????????????????????????? | +----------------------------------------------------+ Best States ------------- Heat Dissipation 25 Energy Generation 10 Energy Capacity 250 Matter Stores 300 Matter Capacity 300 Sight Range 16 Terrain Scan Density 10 Evasion (%) 40 Recoil Reduction 2 Item Schematics ----------------- None Robot Schematics ------------------ None Fabricated ------------ Nothing Alien Tech Used ----------------- None Achievements -------------- None Challenges ------------ None Game ------ Seed CompositeVisualDetonator Manual? 0 Play Time 00:07:12 Cumulative 214.1 hours Start 2022.08.29 @ 16:54:05 End 2022.08.29 @ 17:24:47 Sessions 4 Manual Loads 0 Difficulty Rogue Special Mode None Game No. 245 Rogue 112 Adventurer 81 Explorer 52 Win Type - Total 9 Types 8/0/1/0/0/0/0/0/0 Lore% 32 Gallery% 66 Achievement% 55 Wizard Run 0 Options --------- ASCII 0 Keyboard 0 Movement Mouse Keybinds 0 Fullscreen 1 Font 12/Tallcaps Map View 83x54 Tactical HUD 1 Map Filters NONE Filters NONE Steam 1 RUN: e6b5e1c4-6034-40fc-a159-1598478167c9